Cogmind - Beta 10.2 @@@ ROGUE MODE // 2021.10.23 @ 21:01:14 Player: Peace Result: Destroyed by G-34 Mercenary with Small Laser Performance ------------- Evolutions (1) 500 Regions Visited (3) 600 Robots Destroyed (0) 0 Value Destroyed (0) 0 Prototype IDs (0) 0 Alien Tech Used (0) 0 Bonus (200) 200 TOTAL SCORE: 1300 Bonus ------- Pacifist 200 Cogmind --------- Core Integrity 0/400 Matter 284/300 Energy 99/100 System Corruption 2% Temperature Cool (6) Movement Core (50) Location -9/Storage Parts ------- > --- POWER (1) -------- (None) > --- PROPULSION (2) --- (None) > --- UTILITY (4) ------ Improved Signal Interpreter Targeting Computer Targeting Computer > --- WEAPON (2) ------- (None) > --- INVENTORY (4) ---- Light Ion Engine Peak State ------------ > --- POWER ------------ (None) > --- PROPULSION ------- (None) > --- UTILITY ---------- Structural Scanner Improved Signal Interpreter Terrain Scanner > --- WEAPON ----------- (None) > --- INVENTORY -------- Light Ion Engine [Rating: 4] Favorites ----------- Power Light Ion Engine Engine Light Ion Engine Propulsion Flight Unit Flight Unit Flight Unit Utility Improved Signal Interpreter Device Terrain Scanner Processor Improved Signal Interpreter Weapon None Build | -11 -10 -9 -9 ------- Run | Scr Mat Mat Sto Slots Evolved 2 | . . 2 . Power . | . . . . Propulsion . | . . . . Utility 2 | . . 2 . Weapon . | . . . . Parts Attached 10 | . 5 . 5 Power 1 | . 1 . . Engine 1 | . 1 . . Core . | . . . . Reactor . | . . . . Propulsion 4 | . 4 . . Treads . | . . . . Leg . | . . . . Wheel . | . . . . Hover . | . . . . Flight 4 | . 4 . . Utility 5 | . . . 5 Device 2 | . . . 2 Storage . | . . . . Processor 3 | . . . 3 Hackware . | . . . . Protection . | . . . . Artifact . | . . . . Weapon . | . . . . Energy Gun . | . . . . Energy Cannon . | . . . . Ballistic Gun . | . . . . Ballistic Cannon . | . . . . Launcher . | . . . . Special Weapon . | . . . . Impact Weapon . | . . . . Slashing Weapon . | . . . . Piercing Weapon . | . . . . Special Melee Weapon . | . . . . Unidentified Prototypes . | . . . . Parts Lost 7 | . 2 1 4 Power 1 | . . . 1 Propulsion 4 | . 2 1 1 Utility 2 | . . . 2 Weapon . | . . . . Highest Loss Streak 2 | . 2 1 2 Average Slot Usage (%) 19 | . 10 30 18 Engine 5 | . 3 11 4 Flight 5 | . 7 19 1 Device 2 | . . . 4 Processor 5 | . . . 8 Naked Turns 26 | . 26 . . Heaviest Build 4 | . 3 3 4 Greatest Support 8 | 3 8 8 4 Greatest Overweight (x) 1 | . . . 1 Average Overweight (x) . | . . . . Largest Inventory Capacity 4 | 4 4 4 4 Average Capacity 4 | 4 4 4 4 Most Carried 1 | 1 1 1 1 Average Carried . | . 1 1 1 Final Capacity 4 | 4 4 4 4 Final Carried 1 | 1 1 1 1 Class Distribution -------------------- 100% | Mutant Dominant Class ---------------- Mutant | -10/Materials Mutant | -9/Materials Mutant | -9/Storage Resources | -11 -10 -9 -9 ----------- Run | Scr Mat Mat Sto Matter Collected 245 | 200 . . 45 Remotely . | . . . . Salvage Created . | . . . . Parts . | . . . . Haulers Intercepted . | . . . . Recyclers Shooed 1 | . . . 1 Parts Field Recycled . | . . . . Retrieved Matter . | . . . . Parts Self-Destructed . | . . . . Prevented . | . . . . Kills | -11 -10 -9 -9 ------- Run | Scr Mat Mat Sto Combat Hostiles Destroyed . | . . . . Classes Destroyed . | . . . . Best Kill Streak . | . . . . Combat Bots Only . | . . . . Max Kills in Single Turn . | . . . . Gunslinging . | . . . . Exploded . | . . . . Melee . | . . . . Uniques/NPCs Destroyed . | . . . . Combat | -11 -10 -9 -9 -------- Run | Scr Mat Mat Sto Damage Taken 784 | . 264 41 479 Core 590 | . 189 27 374 Absorbed by Shields . | . . . . Core Remaining (%) 62 | 100 24 . . Volleys Fired . | . . . . Largest . | . . . . Hottest . | . . . . Shots Fired . | . . . . Gun . | . . . . Cannon . | . . . . Launcher . | . . . . Special . | . . . . Kinetic . | . . . . Thermal . | . . . . Explosive . | . . . . Electromagnetic . | . . . . Robot Hit Streak . | . . . . Robot Miss Streak . | . . . . Penetration Max . | . . . . Secondary Targets . | . . . . Shots Hit Robots . | . . . . Core Hits 2 | . . . 2 Critical Hits . | . . . . Critical Kills . | . . . . Critical Parts Destroyed . | . . . . Melee Attacks . | . . . . Impact . | . . . . Slashing . | . . . . Piercing . | . . . . Sneak Attacks . | . . . . Combat Hostiles . | . . . . Follow-up Attacks . | . . . . Damage Inflicted 7 | . . . 7 Guns . | . . . . Cannons . | . . . . Explosions . | . . . . Melee . | . . . . Ramming 7 | . . . 7 Kinetic . | . . . . Thermal . | . . . . Explosive . | . . . . Electromagnetic . | . . . . Impact . | . . . . Slashing . | . . . . Piercing . | . . . . Highest Corruption 2 | . . . 2 Average Corruption 2 | . . . 2 Corruption Purged . | . . . . Overload Shots . | . . . . Overflow Damage . | . . . . Projectiles . | . . . . Explosions . | . . . . Melee . | . . . . Knockbacks . | . . . . Impact . | . . . . Kinetic . | . . . . Secondary . | . . . . Self-Inflicted Damage 3 | . . . 3 Shots . | . . . . Rammed 2 | . . . 2 Targets Rammed 2 | . . . 2 Kicked . | . . . . Crushed . | . . . . Highest Temperature 1 | . 1 . . Average Temperature 1 | . 1 . . Received Heat Transfer 246 | . 93 18 135 Siege Activations . | . . . . Robots Corrupted . | . . . . Combat Hostiles . | . . . . Parts Fried . | . . . . Impact Corruptions . | . . . . Robots Melted . | . . . . Combat Hostiles . | . . . . Parts Melted . | . . . . Heat Transferred . | . . . . Parts Sabotaged . | . . . . Parts Stolen . | . . . . Parts Stripped . | . . . . Power Chain Reactions . | . . . . Missiles Intercepted . | . . . . Alert | -11 -10 -9 -9 ------- Run | Scr Mat Mat Sto Peak Influence 134 | . 45 25 134 Initial 10 | . . 10 5 Average 55 | . 16 21 77 Maximum Alert Level . | . . . . Low Security (%) 100 | 100 100 100 100 Level 1 . | . . . . Level 2 . | . . . . Level 3 . | . . . . Level 4 . | . . . . Level 5 . | . . . . High Security . | . . . . Max Security . | . . . . Squads Dispatched 2 | . . . 2 Investigation . | . . . . Extermination . | . . . . Reinforcement 2 | . . . 2 Assault . | . . . . Garrison . | . . . . Intercept . | . . . . Construction Impeded . | . . . . Haulers Reinforced . | . . . . Stealth | -11 -10 -9 -9 --------- Run | Scr Mat Mat Sto Distress Signals 4 | . 1 . 3 Communications Jammed . | . . . . Distress Signals . | . . . . Times Spotted 32 | . 9 1 22 Peak Tracking Total 15 | . 9 1 15 Tactical Retreats 3 | . . . 3 Traps | -11 -10 -9 -9 ------- Run | Scr Mat Mat Sto Traps Triggered 1 | . . . 1 Indirectly . | . . . . Trap Hack Attempts . | . . . . Triggered . | . . . . Disarmed . | . . . . Reprogrammed . | . . . . Reused . | . . . . Traps Extracted . | . . . . Installed . | . . . . Triggered . | . . . . Machines | -11 -10 -9 -9 ---------- Run | Scr Mat Mat Sto Machines Disabled . | . . . . Max in Single Turn . | . . . . Machines Sabotaged . | . . . . Garrisons Compromised . | . . . . Overloaded Fab Kills . | . . . . Fab Network Shutdowns . | . . . . Hacking | -11 -10 -9 -9 --------- Run | Scr Mat Mat Sto Machines Accessed 3 | . 1 . 2 Terminals 3 | . 1 . 2 Fabricators . | . . . . Repair Stations . | . . . . Recycling Units . | . . . . Scanalyzers . | . . . . Garrison Access . | . . . . Total Hacks 4 | . 2 . 2 Successful 1 | . . . 1 Failed 3 | . 2 . 1 Catastrophic 2 | . 1 . 1 Database Lockouts . | . . . . Manual 4 | . 3 . 1 Terminals 4 | . 2 . 2 Fabricators . | . . . . Repair Stations . | . . . . Recycling Units . | . . . . Scanalyzers . | . . . . Garrison Access . | . . . . Terminal Hacks 1 | . . . 1 Open Door 1 | . . . 1 Fabricator Hacks . | . . . . Repair Station Hacks . | . . . . Recycling Unit Hacks . | . . . . Scanalyzer . | . . . . Garrison Access Hacks . | . . . . Unauthorized Hacks . | . . . . Terminals . | . . . . Fabricators . | . . . . Repair Stations . | . . . . Recycling Units . | . . . . Scanalyzers . | . . . . Garrison Access . | . . . . Data Cores Recovered . | . . . . Used . | . . . . Hacking Detections 3 | . 1 . 2 Full Trace Events . | . . . . Feedback Events . | . . . . Feedback Blocked . | . . . . Robot Schematics Acquired . | . . . . Robots Built . | . . . . Matter . | . . . . Time . | . . . . Total Robot Build Rating . | . . . . Part Schematics Acquired . | . . . . Parts Built . | . . . . Matter . | . . . . Time . | . . . . Total Part Build Rating . | . . . . Parts Repaired . | . . . . Time . | . . . . Parts Recycled . | . . . . Recycled Matter . | . . . . Retrieved Matter . | . . . . Retrieved Components . | . . . . Parts Scanalyzed . | . . . . Part Schematics Acquired . | . . . . Parts Damaged . | . . . . Bothacking | -11 -10 -9 -9 ------------ Run | Scr Mat Mat Sto Used RIF Installer . | . . . . Robots Hacked . | . . . . Non-combat . | . . . . Combat . | . . . . Robot Hacks Applied . | . . . . Relay Couplers Released . | . . . . Robots Rewired . | . . . . Allies Hacked . | . . . . Hacks Repelled . | . . . . Allies | -11 -10 -9 -9 -------- Run | Scr Mat Mat Sto Total Allies . | . . . . Largest Group . | . . . . Highest-Rated Group . | . . . . Highest-Rated Ally . | . . . . Total Orders . | . . . . Ally Attacks . | . . . . Total Damage . | . . . . Kills . | . . . . Allies Corrupted . | . . . . Allies Melted . | . . . . Intel | -11 -10 -9 -9 ------- Run | Scr Mat Mat Sto Robot Analysis Total . | . . . . Derelict Logs Recovered . | . . . . Drone Launches . | . . . . Drone Recoveries . | . . . . Exploration | -11 -10 -9 -9 ------------- Run | Scr Mat Mat Sto Turns Passed 248 | 13 45 32 158 Spaces Moved 422 | 24 83 28 287 Core 301 | 24 50 . 227 Treads . | . . . . Legs . | . . . . Wheels . | . . . . Hover . | . . . . Flight 121 | . 33 28 60 Fastest Speed 37 | 50 37 37 40 Average Speed 46 | 50 44 38 48 Slowest Speed 100 | 50 50 40 100 Overloaded Moves . | . . . . Propulsion Burnouts . | . . . . Robots Hopped 3 | . . 2 1 Cave-ins Triggered . | . . . . Exploration Rate (%) 24 | 3 29 7 59 Regions Visited 3 Branch Regions 1 Pre-discovered Areas 1 | . . . 1 Known Exits Taken . | . . . . Unknown Exits Taken 3 | 1 1 1 . Scrap Searched . | . . . . Spaces Dug . | . . . . Terrain Destroyed . | . . . . Melee . | . . . . Projectile . | . . . . AOE . | . . . . Terrain Rammed . | . . . . Walls Destroyed . | . . . . Machines Disabled . | . . . . Actions | -11 -10 -9 -9 --------- Run | Scr Mat Mat Sto Total 460 | 24 87 46 303 Wait 31 | . . 21 10 Move 413 | 23 82 23 285 Hop 3 | . . 2 1 Pick Up 1 | 1 . . . Fast Attach 10 | . 5 . 5 Attach . | . . . . Detach . | . . . . Swap . | . . . . Drop . | . . . . Fire . | . . . . Melee . | . . . . Ram 2 | . . . 2 Kick . | . . . . Crush . | . . . . Escape Stasis . | . . . . Rewire . | . . . . Trap . | . . . . Miscellaneous . | . . . . Route ------- -11/Scrapyard -10/Materials -9/Materials -9/Storage History --------- Turn | Location | Event 2 | -11/Scrapyard | Met Revision 17 5 | -11/Scrapyard | Discovered new exit (range 15) 14 | -11/Scrapyard | Entered Materials 47 | -10/Materials | Core integrity fell below 50% 58 | -10/Materials | Discovered new exit (range 3) 59 | -10/Materials | Entered another Materials area 59 | -9/Materials | Evolved 2 slots: Utility x2 61 | -9/Materials | Discovered new exit (range 16) 91 | -9/Materials | Entered Storage 162 | -9/Storage | Core integrity fell below 50% 190 | -9/Storage | Core integrity fell below 20% 244 | -9/Storage | Learned location of Armory (-3) 249 | -9/Storage | Destroyed by G-34 Mercenary with Small Laser Last Messages --------------- 00213_ System corrupted (+2). 00216_ O-16 Technician sends out distress signal. 00218_ ALERT: Hostiles spotted, dispatching reinforcements to Terminal S002. 00219_ K-01 Serf collects debris. 00223_ Acquired Targeting Computer. 00223_ K-01 Serf collects debris. 00224_ ALERT: Hostiles spotted, dispatching reinforcements to Terminal S010. 00225_ Acquired Targeting Computer. 00226_ K-01 Serf collects debris. 00235_ Slammed into A-02 Transporter. 00240_ Slammed into R-06 Scavenger. 00242_ A derelict emerges from hiding: "Psst-beep. Hey you, we've already cleared out from here, don't stick around. I stayed behind to warn any stragglers, and you certainly look like you're straggling." 00244_ 6R-ZLK(g): "We'll attack Armory later, meet at one of the rendevous points." World map updated: -3/Armory. 00244_ 6R-ZLK(g) slips back into hiding. Map ----- +----------------------------------------------------+ | ???????????????????????????????????? """" # !!! | | ???????????????????????????????????? """" + !!! | | ???????????????????????????????????? """" # | | ????????????????????????????????????? """" # | | ????????????????????????????????????? ?# "T" | | ???????????????????????????????????? ?# | | ???????????????????????????????????### ##??# | | ?????????????????????????????????????##????###### | | ???????????????????????????????????????????# # | | ???????????????????????????????????????????? # | | ???????????????????????????????????????????? # | | ???????????????????????????????????????????? # | | ??????????????????????????????????????####### ## | | ??????????????????????????????????????# # ## | | ??????????????????????????????????????#% !# ## | | ??????????????????????????????????????# # ## | | ??????????????????????????????????????# # ## | | ??????????????????????????????????????# / | | ??????????????????????????????????????# # | | ??????????????????????????????????????# ###### | | ??????????????????????????????????????# #????? | | ???????????????""?????????????????????# #????? | | ??????????????""" #################### / #????? | | ???????????? """" aY / [ #????? | | ?????????? g g gg########## #????? | | ?????????? r@ g #????????#######????? | | ???????????????############/##???????????????????? | | ?????????????????????????# #???????????????????? | | ?????????????????????????# #???????????????????? | | ?????????????????????????# #???????????????????? | | ?????????????????????????#####???????????????????? | | ?????????????????????????????????????????????????? | | ?????????????????????????????????????????????????? | | ?????????????????????????????????????????????????? | | ?????????????????????????????????????????????????? | | ?????????????????????????????????????????????????? | | ?????????????????????????????????????????????????? | | | | | | | | | | | | | | | | | | | | | | | | | | | +----------------------------------------------------+ Best States ------------- Heat Dissipation 28 Energy Generation 10 Energy Capacity 125 Matter Stores 300 Matter Capacity 300 Sight Range 16 Terrain Scan Range 14 Terrain Scan Density 10 Evasion (%) 62 Targeting Accuracy 10 Item Schematics ----------------- None Robot Schematics ------------------ None Fabricated ------------ Nothing Alien Tech Used ----------------- None Achievements -------------- None Challenges ------------ None Game ------ Seed ScanPowerBay Manual? 0 Play Time 00:06:57 Cumulative 74.5 hours Start 2021.10.23 @ 20:56:59 End 2021.10.23 @ 21:01:14 Sessions 1 Manual Loads 0 Difficulty Rogue Special Mode None Game No. 97 Rogue 97 Adventurer 0 Explorer 0 Win Type - Total 0 Types 0/0/0/0/0/0/0/0/0 Lore% 38 Gallery% 55 Achievement% 37 Wizard Run 0 Options --------- ASCII 0 Keyboard 1 Movement Vi Keybinds 0 Fullscreen 1 Font 18/SmallcapsGlow Map View 76x50 Tactical HUD 1 Map Filters NONE Filters NONE Steam 1 RUN: 82c4d23c-6043-4687-9836-9e37a99a7253